bitfinex/quotes_ETHUSD_20250807
["timestamp","ask_amount","ask_price","bid_price","bid_amount"]
[1754563820787,1e-08,3818.8,3818.7,10.21762557]
[1754563820976,1e-08,3818.8,3818.7,14.47962557]
[1754563821717,1e-08,3818.8,3818.7,10.21762557]
[1754563822009,1e-08,3818.8,3818.7,11.94159222]
[1754563822376,1e-08,3818.8,3818.7,23.20954621]
[1754563822588,1e-08,3818.8,3818.7,23.34074621]
[1754563823909,1e-08,3818.8,3818.7,27.64074621]
[1754563825028,1e-08,3818.8,3818.7,16.37079222]
[1754563825180,1e-08,3818.8,3818.7,19.0546715]
[1754563827135,1e-08,3818.8,3818.7,13.2427715]
[1754563827431,1e-08,3818.8,3818.7,7.9392]
[1754563828125,1.53640001,3818.8,3818.7,4.3882]
[1754563828323,1.07340001,3818.8,3818.7,4.3882]
[1754563828490,1.07340001,3818.8,3818.7,4.9382]
[1754563828694,1.07340001,3818.8,3818.7,7.9382]
[1754563828923,1e-08,3818.8,3818.7,10.55689222]
[1754563829496,1e-08,3818.8,3818.7,7.9382]
[1754563830232,4.15502366,3818.8,3818.7,0.1312]
[1754563830417,2.22375207,3818.8,3818.7,4.3882]
[1754563830757,1e-08,3818.8,3818.7,23.20454621]
[1754563831890,1e-08,3818.8,3818.7,10.42569222]
[1754563832692,1e-08,3818.8,3818.7,11.93659222]
[1754563832892,1e-08,3818.8,3818.7,13.39213256]
[1754563833089,1e-08,3818.8,3818.7,11.88123256]
[1754563833734,1.53640001,3818.8,3818.1,2.61905662]
[1754563833895,4.15509935,3818.7,3817.5,1.0392]
[1754563834101,2.61895066,3818.4,3817.7,2.61932498]
[1754563834327,1.5364,3818.3,3817.5,0.001]
[1754563834626,1.5364,3818.3,3817.6,4.254]
[1754563834798,2.61928209,3817.9,3817.6,4.254]
[1754563834992,1.5364,3818.2,3817.7,4.254]
[1754563834993,2.61919195,3818.0,3817.7,4.254]
[1754563835188,2.61919195,3818.0,3817.8,0.55]
[1754563835189,1.0734,3818.0,3817.8,0.55]
[1754563835420,0.463,3818.3,3817.9,4.254]
[1754563835622,1.0734,3818.0,3817.9,7.254]
[1754563837206,1.0734,3818.5,3818.3,0.55]
[1754563837436,1.0734,3818.5,3818.4,4.253]
[1754563837806,1.5364,3818.5,3818.4,4.253]
[1754563838507,4.15522938,3818.5,3818.4,4.253]
[1754563838717,4.83262219,3818.5,3818.4,4.253]
[1754563839301,2.61929738,3817.9,3817.5,0.001]
[1754563839520,2.61929738,3817.9,3817.6,4.252]
[1754563839722,1.0734,3817.8,3817.6,4.252]
[1754563839934,1.0734,3817.7,3817.6,4.252]
[1754563840634,0.1312,3818.3,3817.7,3.55]
[1754563840832,1e-08,3818.8,3818.5,0.55]
[1754563841010,1e-08,3818.8,3818.6,4.252]
[1754563841731,1e-08,3818.8,3818.7,2.61869222]
[1754563841934,1e-08,3818.8,3818.7,3.16869222]
[1754563842138,1e-08,3818.8,3818.7,4.67959222]
[1754563843003,1e-08,3818.8,3818.7,7.67959222]
[1754563843218,1e-08,3818.8,3818.7,10.26142638]
[1754563845627,1e-08,3818.8,3818.7,9.78872638]
[1754563846002,1e-08,3818.8,3818.7,10.26142638]
[1754563847368,1e-08,3818.8,3818.7,8.75052638]
[1754563847541,1e-08,3818.8,3818.7,10.41769222]
[1754563849749,1e-08,3818.8,3818.7,11.92859222]
[1754563850134,1e-08,3818.8,3818.7,10.41769222]
[1754563850938,1e-08,3818.8,3818.7,10.54889222]
[1754563851155,1e-08,3818.8,3818.7,11.59969222]
[1754563851359,0.98840001,3818.8,3818.7,3.1312]
[1754563851557,4.07182366,3818.8,3818.7,4.3772]
[1754563851757,1.45320001,3818.8,3818.7,4.3772]
[1754563851947,4.75084617,3818.8,3818.7,4.3772]
[1754563852354,4.07182366,3818.8,3818.7,4.3772]
[1754563852759,1e-08,3818.8,3818.7,4.9272]
[1754563854965,1.45320001,3818.8,3818.7,0.1312]
[1754563855170,4.07182366,3818.8,3818.7,4.3762]
[1754563856162,0.98840001,3818.8,3818.7,4.3762]
[1754563856370,4.07182366,3818.8,3818.7,4.3762]
[1754563856532,4.48900603,3818.8,3818.7,0.1312]
[1754563856930,2.61869222,3818.7,3818.6,4.245]
[1754563857168,4.20309222,3818.7,3818.6,4.245]
[1754563857565,4.07189222,3818.7,3818.6,4.245]
[1754563857744,4.79577852,3818.7,3818.6,4.245]
[1754563859472,0.9884,3818.7,3818.6,4.245]
[1754563859979,2.6186539,3818.8,3818.6,4.3762]
[1754563860181,1e-08,3818.8,3818.6,4.3762]
[1754563860555,2.61868779,3818.8,3818.6,4.3762]
[1754563860757,2.61869222,3818.7,3818.6,4.3762]
[1754563861052,4.59561775,3818.7,3818.6,4.243]
[1754563861249,4.59561775,3818.7,3818.6,0.001]
[1754563863176,1e-08,3818.8,3818.6,0.001]
[1754563863177,1e-08,3818.8,3818.6,4.242]
[1754563863593,2.61869222,3818.7,3818.6,4.242]
[1754563863892,1e-08,3818.8,3818.6,4.242]
[1754563864097,2.61865026,3818.8,3818.6,4.242]
[1754563864278,3.60709222,3818.7,3818.6,4.242]
[1754563864594,3.60709222,3818.7,3818.6,4.241]
[1754563865388,2.61869222,3818.7,3818.6,4.241]
[1754563865942,4.07189222,3818.7,3818.6,4.241]
[1754563866882,3.92189222,3818.7,3818.6,4.241]
[1754563867080,4.57594222,3818.7,3818.6,4.241]
[1754563868298,3.92189222,3818.7,3818.6,4.241]
[1754563870265,3.92189222,3818.7,3818.6,0.001]
[1754563870471,6.92189222,3818.7,3818.6,1e-08]
[1754563871102,7.05309222,3818.7,3818.6,1e-08]
[1754563873222,2.59989222,3818.7,3818.6,1e-08]
[1754563873507,3.58829222,3818.7,3818.6,1e-08]
[1754563873709,4.67378222,3818.7,3818.6,1e-08]
[1754563874716,4.20898222,3818.7,3818.6,1e-08]
[1754563875029,2.59989222,3818.7,3818.6,1e-08]
[1754563875237,2.46869222,3818.7,3818.6,1e-08]
[1754563877466,2.61869222,3818.7,3818.6,1.05080001]
[1754563877901,1e-08,3818.8,3818.6,1.05080001]
[1754563878288,2.61869222,3818.7,3818.6,1.05080001]
[1754563878689,2.61862658,3818.8,3818.6,1.05080001]
[1754563878889,1e-08,3818.8,3818.7,1.4871]
[1754563881621,1e-08,3818.8,3818.7,1.64893]
[1754563882138,1e-08,3818.8,3818.7,4.81762222]
[1754563882341,1e-08,3818.8,3818.7,7.94882222]
[1754563885322,1e-08,3818.8,3818.7,12.17982222]
[1754563885825,1e-08,3818.8,3818.7,16.47982222]
[1754563886620,1e-08,3818.8,3818.7,13.87753]
[1754563887124,1e-08,3818.8,3818.7,16.49622222]
[1754563888128,0.1,3819.1,3818.7,16.49622222]
[1754563888129,0.1,3819.1,3819.0,6.16848651]
[1754563888350,0.002,3819.2,3819.1,3.16841795]
[1754563888547,0.002,3819.2,3819.1,10.42360212]
[1754563888776,0.002,3819.2,3819.1,10.39741795]
[1754563888977,0.002,3819.2,3819.1,21.11193595]
[1754563889329,0.002,3819.2,3819.1,11.87121795]
[1754563889530,0.002,3819.2,3819.1,21.14899498]
[1754563889833,0.002,3819.2,3819.1,21.34818669]
[1754563890241,0.002,3819.2,3819.1,18.77718669]
[1754563890460,0.002,3819.2,3819.1,15.77618669]
[1754563890656,0.002,3819.6,3819.5,2.61814373]
[1754563890965,1e-08,3819.6,3819.5,10.39614373]
[1754563891164,1e-08,3819.6,3819.5,23.1388509]
[1754563891348,1e-08,3819.6,3819.5,7.64194373]
[1754563891548,1e-08,3819.6,3819.5,12.87618426]
[1754563895074,1e-08,3819.6,3819.5,11.87148426]
[1754563895235,1e-08,3819.6,3819.5,10.85038426]
[1754563895745,1e-08,3819.6,3819.5,11.40038426]
[1754563896531,1e-08,3819.6,3819.5,12.87418426]
[1754563898165,1e-08,3819.6,3819.5,13.00538426]
[1754563898369,1e-08,3819.6,3819.5,11.52858426]
[1754563898671,1e-08,3819.6,3819.5,13.00238426]
[1754563901290,1e-08,3819.6,3819.5,8.77938426]
[1754563901587,1e-08,3819.6,3819.5,13.00138426]
[1754563903173,1e-08,3819.6,3819.5,34.31897126]
[1754563903375,1e-08,3819.6,3819.5,24.26839625]
[1754563904161,1e-08,3819.6,3819.5,21.90006125]
[1754563904361,1e-08,3819.6,3819.5,19.36339125]
[1754563904562,1e-08,3819.6,3819.5,11.60558425]
[1754563904769,1e-08,3819.6,3819.5,15.82658425]
[1754563905292,1e-08,3819.6,3819.5,18.71360925]
[1754563905587,1e-08,3819.6,3819.5,19.50140925]
[1754563906893,1e-08,3819.6,3819.5,52.15446442]
[1754563907088,1e-08,3819.6,3819.5,42.82141442]
[1754563907295,1e-08,3819.6,3819.5,19.49134925]
[1754563907588,1e-08,3819.6,3819.5,20.51244925]
[1754563909495,0.002,3820.4,3820.2,3.16766399]
[1754563909659,0.002,3820.4,3820.3,19.12798747]
[1754563909858,0.002,3820.4,3820.3,20.73298747]
[1754563911161,0.002,3820.4,3820.3,14.48718431]
[1754563912060,0.002,3820.4,3820.3,13.96042947]
[1754563912256,0.002,3820.4,3820.3,8.36259634]
[1754563912522,0.9473,3821.1,3821.0,3.16711593]
[1754563912657,0.4606,3821.3,3821.1,0.55]
[1754563912861,2.61671629,3821.6,3821.2,4.216]
[1754563913088,2.61664485,3821.7,3821.2,4.216]
[1754563913360,2.61659581,3821.8,3821.2,4.216]
[1754563913579,0.26165129,3821.9,3821.3,0.55]
[1754563913792,0.4606,3821.8,3821.4,4.215]
[1754563913978,2.61651352,3821.9,3821.5,4.215]
[1754563914181,0.4606,3821.7,3821.5,4.215]
[1754563914364,2.61670504,3821.6,3821.1,0.19234971]
[1754563914683,3.07741474,3821.5,3821.0,0.55]
[1754563915010,1.4079,3821.4,3821.1,4.215]
[1754563915392,0.4606,3821.4,3821.2,2.61697608]
[1754563915581,0.4606,3821.4,3821.3,4.215]
[1754563915776,1.4079,3822.0,3821.4,3.0]
[1754563916126,1.4079,3822.0,3821.6,0.55]
[1754563916425,1.4079,3822.0,3821.7,6.83058122]
[1754563916589,0.4606,3822.0,3821.8,3.0]
[1754563916791,0.9473,3822.3,3822.0,2.61639438]
[1754563917084,0.4606,3822.5,3822.2,2.61629428]
[1754563917287,0.4606,3822.5,3822.3,7.38018106]
[1754563917485,0.4606,3822.5,3822.3,4.764]
[1754563917687,2.61568803,3823.1,3822.4,3.0]
[1754563917901,1.4079,3822.8,3822.5,4.213]
[1754563918105,2.8773607,3823.0,3822.5,4.213]
[1754563918106,0.4606,3822.7,3822.5,4.213]
[1754563918419,1.97632233,3823.5,3822.5,4.213]
[1754563918420,1.4079,3822.6,3822.5,4.213]
[1754563918910,1.4099,3822.6,3822.2,0.55]
[1754563919112,1.4079,3822.5,3822.2,0.55]
[1754563919298,1.4079,3822.5,3822.3,4.212]
[1754563919614,1.4079,3822.4,3822.3,7.762]
[1754563919812,1.4079,3822.4,3821.2,0.439]
[1754563919981,1.4079,3822.4,3821.7,3.55]
[1754563919982,1.4079,3822.3,3821.7,3.55]
[1754563920186,0.4606,3822.2,3821.9,3.55]
[1754563920406,1.4079,3822.1,3822.0,4.212]
[1754563920916,2.61670417,3821.7,3821.0,2.61707457]
[1754563921085,2.61649964,3821.9,3821.2,6.82796821]
[1754563921409,1.4079,3821.8,3821.4,3.0]
[1754563921611,1.4079,3821.7,3821.0,5.61710647]
[1754563921813,4.02460549,3821.6,3820.9,6.287]
[1754563921977,4.02467351,3821.5,3821.1,3.0]
[1754563922180,2.61697895,3821.2,3820.9,6.287]
[1754563922376,2.61697895,3821.2,3821.1,0.1312]
[1754563922583,2.61711593,3821.0,3820.9,6.287]
[1754563922785,3.01921185,3821.6,3819.9,2.61782189]
[1754563922786,2.6173754,3820.7,3819.9,2.61782189]
[1754563923018,2.6173754,3820.7,3819.7,8.90399092]
[1754563923019,1.4079,3820.6,3820.0,6.82778649]
[1754563923201,1.4079,3820.6,3820.0,5.78317774]
[1754563923394,2.61709875,3821.1,3820.5,2.74865536]
[1754563923599,2.616999,3821.2,3820.9,0.1312]
[1754563923789,2.616999,3821.2,3821.0,4.21]
[1754563923995,0.4606,3821.2,3821.0,4.21]
[1754563924303,3.56427895,3821.2,3821.1,0.1312]
[1754563924887,3.07757895,3821.2,3821.1,0.1312]
[1754563925115,4.02487895,3821.2,3821.1,0.1312]
[1754563925317,1.97734393,3821.2,3819.9,2.6178114]
[1754563925503,2.61740409,3820.6,3820.0,4.21]
[1754563925689,0.56944393,3821.2,3820.7,0.1312]
[1754563925690,1.4079,3820.8,3820.7,0.1312]
[1754563925883,4.02520105,3820.8,3820.7,0.1312]
[1754563926113,4.02520105,3820.8,3820.7,4.3402]
[1754563927316,1.4079,3820.8,3819.8,1.0325]
[1754563927521,2.61738993,3820.6,3820.5,0.1312]
[1754563927725,2.61774708,3820.1,3819.7,3.0]
[1754563927925,2.61785149,3820.0,3819.8,4.209]
[1754563928127,3.0783501,3820.1,3820.0,0.1312]
[1754563928300,2.74847346,3820.8,3820.0,0.1312]
[1754563928301,2.61754685,3820.4,3820.0,0.1312]
[1754563928502,4.02509407,3820.9,3820.5,0.1312]
[1754563928826,2.61732143,3820.7,3820.6,4.209]
[1754563929488,3.07787623,3820.8,3820.6,4.209]
[1754563929692,0.5918,3821.1,3820.6,4.209]
[1754563929912,2.61732143,3820.7,3820.6,4.209]
[1754563930143,4.02522143,3820.7,3820.6,4.209]
[1754563931650,3.07792143,3820.7,3820.6,4.209]
[1754563931810,2.6171978,3820.9,3820.6,4.209]
[1754563932007,2.61730917,3820.8,3820.6,4.3402]
[1754563932431,2.61732143,3820.7,3820.6,4.3402]
[1754563933315,4.68946446,3820.7,3820.6,4.207]
[1754563933909,3.74216446,3820.7,3820.6,4.207]
[1754563934117,3.28156446,3820.7,3820.6,4.207]
[1754563934432,0.15391,3821.1,3820.6,4.207]
[1754563934639,2.61732143,3820.7,3820.6,4.207]
[1754563934955,4.02522143,3820.7,3820.6,4.207]
[1754563935315,4.02522143,3820.7,3819.7,6.65048691]
[1754563935316,2.61742766,3820.6,3819.7,6.65048691]
[1754563935535,2.61758118,3820.4,3819.8,7.756]
[1754563935766,2.61758118,3820.4,3819.8,10.37391758]
[1754563936062,2.61736606,3820.7,3820.0,2.61775786]
[1754563936214,2.61740567,3820.6,3820.1,1.0325]
[1754563936416,2.61740567,3820.6,3820.2,5.2385]
[1754563936720,0.15391,3821.1,3820.2,5.2385]
[1754563936721,2.6173315,3820.7,3820.3,1.0325]
[1754563937122,2.61746181,3820.5,3820.2,4.207]
[1754563938066,2.61741561,3820.6,3820.2,4.207]
[1754563938468,0.4606,3820.6,3820.2,4.207]
[1754563938671,0.4606,3820.5,3820.3,4.205]
[1754563938886,3.07815071,3820.4,3820.3,4.205]
[1754563939075,3.5647839,3820.5,3820.3,4.205]
[1754563939388,2.6174839,3820.5,3820.3,4.205]
[1754563940009,2.61752696,3820.4,3820.3,4.205]
[1754563940173,3.09152696,3820.4,3820.3,4.205]
[1754563940763,2.61759547,3820.3,3820.2,0.001]
[1754563941013,2.61759547,3820.3,3820.2,4.205]
[1754563941575,0.474,3820.4,3820.2,4.205]
[1754563941777,2.61747005,3820.5,3820.2,4.205]
[1754563941992,2.61753212,3820.4,3820.2,4.205]
[1754563942200,2.61759547,3820.3,3820.2,4.205]
[1754563942829,4.04139547,3820.3,3820.2,8.505]
[1754563943009,4.04139547,3820.3,3820.2,0.001]
[1754563943781,4.04139547,3820.3,3820.2,1e-08]
[1754563944010,2.61766399,3820.2,3820.1,1e-08]
[1754563944278,4.04146399,3820.2,3820.1,1e-08]
[1754563946017,8.24346399,3820.2,3820.1,1e-08]
[1754563946318,12.87282373,3820.2,3820.1,1e-08]
[1754563946718,2.61807519,3819.6,3819.5,1e-08]
[1754563947027,9.82007519,3819.6,3819.5,1e-08]
[1754563947336,11.24387519,3819.6,3819.5,1e-08]
[1754563947475,12.38840797,3819.6,3819.5,1e-08]
[1754563947676,2.74927519,3819.6,3819.5,1e-08]
[1754563947915,2.61807519,3819.6,3819.5,0.92500001]
[1754563948113,2.61807519,3819.6,3819.5,1e-08]
[1754563948427,4.04187519,3819.6,3819.5,1e-08]
[1754563948632,2.61807519,3819.6,3819.5,1e-08]
[1754563948948,3.29718187,3819.6,3819.5,1e-08]
[1754563949110,2.61807519,3819.6,3819.5,1e-08]
[1754563950315,3.09207519,3819.6,3819.5,1e-08]
[1754563950621,2.61807519,3819.6,3819.5,1e-08]
[1754563951395,4.04187519,3819.6,3819.5,1e-08]
[1754563951698,6.81907519,3819.6,3819.5,1e-08]
[1754563951906,2.61807519,3819.6,3819.5,1e-08]
[1754563952419,5.14108187,3819.6,3819.5,1e-08]
[1754563952823,4.19128187,3819.6,3819.5,1e-08]
[1754563953316,5.14108187,3819.6,3819.5,1e-08]
[1754563953684,9.34108187,3819.6,3819.5,1e-08]
[1754563953911,8.39128187,3819.6,3819.5,1e-08]
[1754563954291,9.34108187,3819.6,3819.5,1e-08]
[1754563954499,7.91728187,3819.6,3819.5,1e-08]
[1754563955132,8.39128187,3819.6,3819.5,1e-08]
[1754563955338,7.91728187,3819.6,3819.5,1e-08]
[1754563955486,3.71728187,3819.6,3819.5,1e-08]
[1754563955689,6.81807519,3819.6,3819.5,1e-08]
[1754563957220,8.24187519,3819.6,3819.5,1e-08]
[1754563957420,4.04187519,3819.6,3819.5,1e-08]
[1754563957619,7.29107519,3819.6,3819.5,1e-08]
[1754563957844,6.81707519,3819.6,3819.5,1e-08]
[1754563958022,7.82110187,3819.6,3819.5,1e-08]
[1754563958418,3.62210187,3819.6,3819.5,1e-08]
[1754563958624,6.81607519,3819.6,3819.5,0.92500001]
[1754563959653,6.81607519,3819.6,3819.5,1e-08]
[1754563960115,8.23987519,3819.6,3819.5,1e-08]
[1754563960317,4.04187519,3819.6,3819.5,1e-08]
[1754563960516,8.91798187,3819.6,3819.5,1e-08]
[1754563961249,7.96818187,3819.6,3819.5,1e-08]
[1754563961454,7.49418187,3819.6,3819.5,1e-08]
[1754563961630,3.29718187,3819.6,3819.5,1e-08]
[1754563961820,7.49418187,3819.6,3819.5,1e-08]
[1754563962215,7.96818187,3819.6,3819.5,1e-08]
[1754563962435,8.91798187,3819.6,3819.5,1e-08]
[1754563963440,7.96818187,3819.6,3819.5,1e-08]
[1754563964052,7.49418187,3819.6,3819.5,1e-08]
[1754563964359,7.49318187,3819.6,3819.5,1e-08]
[1754563964657,7.96718187,3819.6,3819.5,1e-08]
[1754563965239,3.29718187,3819.6,3819.5,1e-08]
[1754563965618,3.29718187,3819.6,3818.8,2.93614178]
[1754563965619,2.61832912,3819.3,3818.8,2.93614178]
[1754563966017,2.61820302,3819.5,3818.9,0.925]
[1754563966222,2.61814373,3819.5,3818.9,0.925]
[1754563966454,2.6182734,3819.4,3818.9,0.925]
[1754563966650,4.195,3820.0,3818.9,0.925]
[1754563966651,2.61816456,3819.5,3818.9,0.925]
[1754563966832,3.0,3819.9,3818.9,0.925]
[1754563967032,2.61793811,3819.8,3818.9,0.925]
[1754563967234,3.0,3819.9,3818.9,0.925]
[1754563967456,1.02867791,3820.0,3818.9,0.925]
[1754563967780,0.476,3820.4,3819.0,0.4681]
[1754563967982,4.195,3820.3,3819.2,0.55]
[1754563968200,0.002,3820.4,3819.4,0.55]
[1754563968371,0.002,3820.4,3819.6,0.55]
[1754563968563,0.002,3820.4,3820.0,2.61775309]
[1754563968880,0.002,3820.4,3820.3,2.61759547]
[1754563969396,0.002,3820.4,3820.3,4.01069547]
[1754563972287,0.002,3820.4,3820.3,4.20750619]
[1754563973269,0.002,3820.4,3820.3,5.30942787]
[1754563973678,0.002,3820.4,3820.3,8.85942787]
[1754563974503,0.002,3820.4,3820.3,13.05042787]
[1754563975594,0.002,3820.4,3820.3,13.18162787]
[1754563976101,0.002,3820.4,3820.3,13.61292787]
[1754563979368,0.002,3820.4,3820.3,21.73643987]
[1754563979807,0.002,3820.4,3820.3,17.52727287]
[1754563980398,2.61670533,3821.6,3820.5,3.55]
[1754563980580,2.61827327,3822.3,3821.2,0.1312]
[1754563980581,3.53277592,3821.5,3821.2,0.1312]
[1754563980791,2.7477797,3821.8,3821.2,0.1312]
[1754563980792,0.002,3821.6,3821.3,4.187]
[1754563981092,2.61871021,3821.6,3821.3,4.187]
[1754563981662,0.002,3821.6,3821.3,4.187]
[1754563982090,0.002,3821.6,3821.4,0.9645]
[1754563982292,0.002,3821.6,3821.3,7.23888894]
[1754563982293,0.002,3821.6,3821.5,2.61677351]
[1754563982497,0.002,3821.6,3821.5,2.74797351]
[1754563982702,0.002,3821.6,3821.5,4.14747351]
[1754563983410,0.002,3821.6,3821.5,7.69747351]
[1754563984187,0.002,3821.6,3821.5,6.71247351]
[1754563984391,0.002,3821.6,3821.5,11.44847351]
[1754563984587,0.002,3821.6,3821.5,11.88347351]
[1754563984788,0.002,3821.6,3821.5,10.89747351]
[1754563985015,0.002,3821.6,3821.5,3.0]
[1754563985188,0.002,3821.6,3821.5,7.185]
[1754563986115,0.002,3821.6,3821.5,4.184]
[1754563986791,0.002,3821.6,3821.4,0.1312]
[1754563986988,0.002,3821.6,3821.5,4.184]
[1754563987188,0.002,3821.6,3821.4,0.1312]
[1754563987395,0.4333,3821.6,3821.5,4.184]
[1754563987598,0.002,3821.6,3821.5,4.184]
[1754563988116,0.002,3821.6,3821.5,4.183]
[1754563990718,0.002,3821.6,3821.4,3.1312]
[1754563991027,0.002,3821.6,3821.5,4.182]
[1754563991198,0.4333,3821.6,3821.5,4.182]
[1754563991924,0.002,3821.6,3821.5,4.182]
[1754563992305,0.002,3821.6,3821.5,5.1465]
[1754563992503,0.002,3821.6,3821.5,0.9645]
[1754563992705,0.002,3821.6,3821.5,5.1455]
[1754563992913,0.002,3821.6,3821.5,7.76227351]
[1754563993308,0.002,3821.6,3821.5,5.1455]
[1754563993536,0.002,3821.6,3821.5,7.76227351]
[1754563994840,0.002,3821.6,3821.5,5.1455]
[1754563996339,0.002,3821.6,3821.5,4.181]
[1754563996536,0.002,3821.6,3821.5,7.76227351]
[1754563996736,0.002,3821.6,3821.5,8.19727351]
[1754563997034,0.002,3821.6,3821.5,9.84180618]
[1754564000854,0.002,3821.6,3821.5,12.84180618]
[1754564002634,0.002,3821.6,3821.5,12.84280618]
[1754564005597,0.002,3821.6,3821.5,15.77894796]
[1754564005894,0.002,3821.6,3821.5,15.91014796]
[1754564006390,0.002,3821.6,3821.5,45.91014796]
[1754564006562,1e-08,3821.6,3821.5,45.91014796]
[1754564007470,1e-08,3821.6,3821.5,26.89410096]
[1754564008660,1e-08,3821.6,3821.5,35.77028291]
[1754564009464,0.002,3821.8,3821.7,3.16663657]
[1754564009689,0.002,3821.8,3821.7,13.04968221]
[1754564009867,0.002,3821.8,3821.7,14.53701585]
[1754564010803,0.002,3821.8,3821.7,19.2401978]
[1754564010966,0.002,3821.8,3821.7,23.4131978]
[1754564011565,0.002,3821.8,3821.7,32.2652978]
[1754564011874,0.002,3822.3,3822.2,6.16629428]
[1754564012102,0.002,3822.3,3822.2,20.0917433]
[1754564012269,0.002,3822.3,3822.2,21.6052433]
[1754564014307,0.002,3822.3,3822.2,9.78629428]
[1754564014673,0.002,3822.3,3822.2,10.33629428]
[1754564014872,0.002,3822.3,3822.2,11.27659428]
[1754564015271,0.002,3822.3,3822.2,10.33629428]
[1754564015605,0.002,3822.3,3822.2,18.05944728]
[1754564015906,0.002,3822.3,3822.2,30.23030065]
[1754564016091,0.002,3822.3,3822.2,29.46996465]
[1754564016288,0.002,3822.3,3822.2,27.09309065]
[1754564016800,0.002,3822.3,3822.2,37.50341116]
[1754564017103,0.002,3822.3,3822.2,34.13841716]
[1754564017282,0.002,3822.3,3822.2,33.39183316]
[1754564017477,0.002,3822.3,3822.2,16.60026365]
[1754564017695,0.002,3822.3,3822.2,7.64036865]
[1754564017877,0.002,3822.3,3822.2,11.80836865]
[1754564018079,0.002,3822.3,3822.2,5.61629428]
[1754564018269,0.002,3822.3,3822.2,9.78429428]
[1754564018475,0.002,3822.3,3822.2,11.27459428]
[1754564018905,0.002,3822.3,3822.2,10.33429428]
[1754564019801,0.002,3822.3,3822.2,18.15435128]
[1754564020004,0.002,3822.3,3822.2,16.83396132]
[1754564020201,0.002,3822.3,3822.2,14.28520132]
[1754564020434,0.002,3822.3,3822.2,13.84320132]
[1754564020637,0.002,3822.3,3822.2,12.90190132]
[1754564020814,0.002,3822.3,3822.2,14.28420132]
[1754564021010,0.002,3822.3,3822.2,19.80869332]
[1754564021214,0.002,3822.3,3822.2,17.70853632]
[1754564021534,0.002,3822.3,3822.2,17.10776932]
[1754564022103,0.002,3822.3,3822.2,22.56234832]
[1754564022301,0.002,3822.3,3822.2,16.44793332]
[1754564022515,0.002,3822.3,3822.2,16.60235032]
[1754564024206,0.002,3822.3,3822.2,16.73355032]
[1754564025139,0.002,3822.3,3822.2,26.9164411]
[1754564025438,0.002,3822.3,3822.2,25.0606461]
[1754564026037,0.002,3822.3,3822.2,22.33437132]
[1754564026239,0.002,3822.3,3822.2,19.3546611]
[1754564026539,0.002,3822.3,3822.2,16.41851932]
[1754564027037,0.002,3822.3,3822.2,25.46377532]
[1754564027207,0.002,3822.3,3822.2,22.65061632]
[1754564027911,0.002,3822.3,3822.2,16.64938632]
[1754564028112,0.002,3822.3,3822.2,16.42825132]
[1754564028331,0.002,3822.3,3822.2,17.59564432]
[1754564029342,0.002,3822.3,3822.2,36.82185732]
[1754564029539,0.002,3822.3,3822.2,38.62362732]
[1754564030312,0.002,3822.3,3822.2,44.41540132]
[1754564030636,0.4358,3823.6,3823.5,2.61540473]
[1754564030844,0.4358,3823.6,3823.5,6.77740473]
[1754564031029,0.1304,3824.2,3823.5,6.77740473]
[1754564031030,0.1304,3824.2,3823.5,6.90775429]
[1754564031213,0.1304,3824.6,3823.5,0.1304]
[1754564031408,0.1304,3824.6,3823.1,0.55]
[1754564031409,0.27450341,3824.5,3824.0,2.74546008]
[1754564031735,1.4,3824.4,3824.1,6.77698888]
[1754564031907,0.1304,3824.6,3824.1,6.77698888]
[1754564032245,2.6145695,3824.8,3824.2,0.1304]
[1754564032246,1.4,3824.3,3824.2,0.1304]
[1754564034441,1.4,3824.3,3824.2,2.74532599]
[1754564035018,1.4,3824.3,3824.2,0.1304]
[1754564035330,0.4358,3824.3,3824.2,0.1304]
[1754564035529,0.9642,3824.5,3824.2,2.74532599]
[1754564035837,1.4,3824.4,3824.3,4.16]
[1754564036040,0.4358,3824.4,3824.3,4.2904]
[1754564036205,1.4,3824.4,3824.3,4.2904]
[1754564038138,0.4358,3824.4,3824.3,4.2904]
[1754564038340,0.4358,3824.4,3824.3,6.90525762]
[1754564038638,0.9642,3824.7,3824.3,4.2904]
[1754564038839,0.4358,3824.6,3824.3,4.2904]
[1754564039166,0.4358,3825.4,3824.7,0.55]
[1754564039346,0.4358,3825.0,3824.7,0.55]
[1754564039644,0.5758,3825.0,3824.9,2.61444743]
[1754564039940,0.4358,3825.0,3824.9,0.1304]
[1754564040152,0.4358,3825.0,3824.9,4.157]
[1754564040153,4.01437908,3825.0,3824.9,4.157]
[1754564040610,1.4,3825.0,3824.9,4.157]
[1754564040943,4.01437908,3825.0,3824.9,4.157]
[1754564041130,2.61444743,3824.9,3824.7,0.1304]
[1754564041303,3.01583725,3825.0,3824.9,4.157]
[1754564041509,2.61468441,3824.6,3824.0,3.20078019]
[1754564041708,2.61469833,3824.6,3824.5,0.1304]
[1754564042142,0.30158373,3824.9,3822.9,0.4372]
[1754564042359,0.30471716,3825.6,3823.0,4.156]
[1754564042360,8.86845737,3824.7,3823.0,4.156]
[1754564042520,2.61540473,3823.5,3823.4,0.1304]
[1754564042728,2.61540473,3823.5,3823.4,4.156]
[1754564042729,0.26154047,3823.5,3823.4,4.156]
[1754564042959,1.4,3823.5,3823.4,4.156]
[1754564043158,4.01540672,3823.5,3823.4,4.156]
[1754564043383,2.61553386,3823.4,3822.9,0.1304]
[1754564043587,2.61566209,3823.2,3823.0,4.156]
[1754564043750,2.615686,3823.1,3822.9,0.1304]
[1754564043944,4.015686,3823.1,3823.0,4.155]